[Event "Late-Titled-Tuesday-Blitz-April-16-2024"]
[Site "Chess.com"]
[Date "2024.04.16"]
[Round "2"]
[White "Balla_Tamas"]
[Black "amanmuhammethommadov"]
[Result "0-1"]
[WhiteElo "2542"]
[BlackElo "2810"]
[TimeControl "180+1"]
[EndTime "14:15:52 PDT"]
[Termination "amanmuhammethommadov won by resignation"]

1. Nf3 {[%clk 0:03:00.9]} 1... Nf6 {[%clk 0:03:00.1]} 2. b3 {[%clk 0:03:01.1]}
2... g6 {[%clk 0:03:00.5]} 3. Bb2 {[%clk 0:03:01.7]} 3... Bg7 {[%clk 0:03:01.1]}
4. e3 {[%clk 0:03:02.3]} 4... O-O {[%clk 0:03:01.6]} 5. c4 {[%clk 0:03:02.8]}
5... d6 {[%clk 0:03:01.4]} 6. Nc3 {[%clk 0:03:03]} 6... e5 {[%clk 0:03:01.7]} 7.
d4 {[%clk 0:03:03.5]} 7... e4 {[%clk 0:03:02.2]} 8. Nd2 {[%clk 0:03:03.8]} 8...
Re8 {[%clk 0:03:02.5]} 9. Be2 {[%clk 0:03:04.3]} 9... h5 {[%clk 0:03:02.4]} 10.
O-O {[%clk 0:03:04.3]} 10... Nbd7 {[%clk 0:03:02.9]} 11. Re1 {[%clk 0:03:04]}
11... Nf8 {[%clk 0:03:02.2]} 12. f3 {[%clk 0:03:03.5]} 12... exf3 {[%clk
0:03:01.9]} 13. Bxf3 {[%clk 0:03:04.4]} 13... N8h7 {[%clk 0:03:00.8]} 14. e4
{[%clk 0:03:01.8]} 14... Ng5 {[%clk 0:03:00.9]} 15. Nd5 {[%clk 0:02:49.1]} 15...
c6 {[%clk 0:02:47.7]} 16. Nxf6+ {[%clk 0:02:42.2]} 16... Bxf6 {[%clk 0:02:48]}
17. Qe2 {[%clk 0:02:37]} 17... c5 {[%clk 0:02:34]} 18. Qd3 {[%clk 0:02:14.7]}
18... Ne6 {[%clk 0:02:28.5]} 19. e5 {[%clk 0:02:08.7]} 19... dxe5 {[%clk
0:02:27.5]} 20. d5 {[%clk 0:02:08.7]} 20... Nd4 {[%clk 0:02:14.4]} 21. Ne4
{[%clk 0:02:05]} 21... Bf5 {[%clk 0:02:12.3]} 22. Qe3 {[%clk 0:01:56.9]} 22...
Bg7 {[%clk 0:02:06.1]} 23. Rac1 {[%clk 0:01:39.2]} 23... b6 {[%clk 0:02:06.4]}
24. Ng5 {[%clk 0:01:28.5]} 24... Bh6 {[%clk 0:02:03.9]} 25. h4 {[%clk
0:01:27.6]} 25... f6 {[%clk 0:02:03.1]} 26. d6 {[%clk 0:01:17.7]} 26... fxg5
{[%clk 0:01:44.6]} 27. Bd5+ {[%clk 0:01:11.1]} 27... Kh7 {[%clk 0:01:41.3]} 28.
Bxa8 {[%clk 0:01:10.8]} 28... Qxa8 {[%clk 0:01:42.2]} 29. hxg5 {[%clk 0:01:04]}
29... Bg7 {[%clk 0:01:42.2]} 30. b4 {[%clk 0:00:59.8]} 30... Qc6 {[%clk
0:01:42]} 31. bxc5 {[%clk 0:00:59.7]} 31... bxc5 {[%clk 0:01:42.9]} 32. Ba3
{[%clk 0:00:57.9]} 32... Qxd6 {[%clk 0:01:42.4]} 33. Qc3 {[%clk 0:00:54.9]}
33... Qc7 {[%clk 0:01:36.3]} 34. Rb1 {[%clk 0:00:42.2]} 34... Bxb1 {[%clk
0:01:34.3]} 35. Rxb1 {[%clk 0:00:42]} 35... Ne2+ {[%clk 0:01:34.5]} 0-1

[Event "Late-Titled-Tuesday-Blitz-April-16-2024"]
[Site "Chess.com"]
[Date "2024.04.16"]
[Round "2"]
[White "Agent-JL"]
[Black "tptagain"]
[Result "0-1"]
[WhiteElo "2604"]
[BlackElo "2941"]
[TimeControl "180+1"]
[EndTime "14:15:55 PDT"]
[Termination "tptagain won by resignation"]

1. e4 {[%clk 0:02:56.4]} 1... Nc6 {[%clk 0:02:59.6]} 2. d4 {[%clk 0:02:53.2]}
2... e5 {[%clk 0:02:59.5]} 3. d5 {[%clk 0:02:44.7]} 3... Nce7 {[%clk 0:02:59.3]}
4. c4 {[%clk 0:02:45]} 4... Ng6 {[%clk 0:02:59.2]} 5. g3 {[%clk 0:02:40.7]} 5...
Nf6 {[%clk 0:02:58]} 6. Nc3 {[%clk 0:02:39.8]} 6... Bb4 {[%clk 0:02:58]} 7. Bg2
{[%clk 0:02:37.1]} 7... Bxc3+ {[%clk 0:02:57.5]} 8. bxc3 {[%clk 0:02:37.1]} 8...
d6 {[%clk 0:02:57.9]} 9. a4 {[%clk 0:02:34.8]} 9... a5 {[%clk 0:02:56.2]} 10. h3
{[%clk 0:02:29.4]} 10... O-O {[%clk 0:02:54.8]} 11. Nf3 {[%clk 0:02:14.1]} 11...
Nxe4 {[%clk 0:02:53.3]} 12. Qc2 {[%clk 0:02:10.2]} 12... Nc5 {[%clk 0:02:48]}
13. Be3 {[%clk 0:02:06.9]} 13... b6 {[%clk 0:02:42.5]} 14. O-O {[%clk
0:02:02.1]} 14... Ba6 {[%clk 0:02:39.1]} 15. Nd2 {[%clk 0:02:00.1]} 15... f5
{[%clk 0:02:38.5]} 16. f4 {[%clk 0:01:53.5]} 16... exf4 {[%clk 0:02:36.7]} 17.
Bxf4 {[%clk 0:01:50.2]} 17... Nxf4 {[%clk 0:02:33.1]} 18. Rxf4 {[%clk
0:01:50.8]} 18... Qg5 {[%clk 0:02:33.2]} 19. Kh2 {[%clk 0:01:47.5]} 19... Rae8
{[%clk 0:02:32.8]} 20. Nf3 {[%clk 0:01:37.9]} 20... Qf6 {[%clk 0:02:20.2]} 21.
Nd4 {[%clk 0:01:33.9]} 21... g6 {[%clk 0:02:10.8]} 22. Bf1 {[%clk 0:01:10.6]}
22... Bc8 {[%clk 0:02:07.9]} 23. Ra2 {[%clk 0:00:56.7]} 23... Bd7 {[%clk
0:02:02.8]} 24. Bd3 {[%clk 0:00:49.3]} 24... Re3 {[%clk 0:02:02.3]} 25. Rf3
{[%clk 0:00:46.8]} 25... Rxf3 {[%clk 0:01:58.8]} 26. Nxf3 {[%clk 0:00:47.7]}
26... f4 {[%clk 0:01:52.7]} 27. g4 {[%clk 0:00:45.3]} 27... Re8 {[%clk
0:01:52.8]} 28. Nd4 {[%clk 0:00:37]} 28... Re3 {[%clk 0:01:47.7]} 29. Bf1 {[%clk
0:00:37.6]} 29... Ne4 {[%clk 0:01:40.4]} 30. Bd3 {[%clk 0:00:29]} 30... Qh4
{[%clk 0:01:32.9]} 31. Bxe4 {[%clk 0:00:25.9]} 31... Qxh3+ {[%clk 0:01:33.1]}
32. Kg1 {[%clk 0:00:25.2]} 32... Re1+ {[%clk 0:01:33.7]} 0-1

[Event "Late-Titled-Tuesday-Blitz-April-16-2024"]
[Site "Chess.com"]
[Date "2024.04.16"]
[Round "2"]
[White "yuriydovzik"]
[Black "prochn"]
[Result "1-0"]
[WhiteElo "2135"]
[BlackElo "2428"]
[TimeControl "180+1"]
[EndTime "14:16:09 PDT"]
[Termination "yuriydovzik won by resignation"]

1. a3 {[%clk 0:02:56.8]} 1... d5 {[%clk 0:02:59.9]} 2. Nf3 {[%clk 0:02:51.7]}
2... c5 {[%clk 0:02:59.5]} 3. b4 {[%clk 0:02:46.1]} 3... c4 {[%clk 0:02:36.2]}
4. Bb2 {[%clk 0:02:38.9]} 4... Bf5 {[%clk 0:02:30]} 5. d3 {[%clk 0:02:33.4]}
5... cxd3 {[%clk 0:02:29.1]} 6. cxd3 {[%clk 0:02:29.8]} 6... e6 {[%clk
0:02:26.6]} 7. h3 {[%clk 0:02:17.7]} 7... Nf6 {[%clk 0:02:23.1]} 8. g4 {[%clk
0:02:15.4]} 8... Bg6 {[%clk 0:02:23.3]} 9. Bg2 {[%clk 0:02:14.7]} 9... Bd6
{[%clk 0:02:22.9]} 10. Nbd2 {[%clk 0:02:05]} 10... Nc6 {[%clk 0:02:20.1]} 11.
O-O {[%clk 0:01:53]} 11... a6 {[%clk 0:02:16.9]} 12. Rc1 {[%clk 0:01:47.8]}
12... O-O {[%clk 0:02:09.8]} 13. Nb3 {[%clk 0:01:42.7]} 13... Nd7 {[%clk
0:02:06.3]} 14. Nc5 {[%clk 0:01:28.2]} 14... Bb8 {[%clk 0:01:28.6]} 15. Nxb7
{[%clk 0:01:21.2]} 15... Qc7 {[%clk 0:01:28.5]} 16. Na5 {[%clk 0:01:16.2]} 16...
Be4 {[%clk 0:00:26.5]} 17. Nxc6 {[%clk 0:01:06.6]} 17... Qf4 {[%clk 0:00:15.4]}
18. Nxb8 {[%clk 0:00:58.8]} 1-0

[Event "Late-Titled-Tuesday-Blitz-April-16-2024"]
[Site "Chess.com"]
[Date "2024.04.16"]
[Round "2"]
[White "Abund"]
[Black "Nemsko"]
[Result "1-0"]
[WhiteElo "2808"]
[BlackElo "2433"]
[TimeControl "180+1"]
[EndTime "14:16:16 PDT"]
[Termination "Abund won by resignation"]

1. e4 {[%clk 0:03:00.9]} 1... e5 {[%clk 0:02:59.9]} 2. Nf3 {[%clk 0:03:01.3]}
2... Nc6 {[%clk 0:03:00.4]} 3. Bb5 {[%clk 0:03:01.6]} 3... a6 {[%clk 0:03:00.6]}
4. Ba4 {[%clk 0:03:01.9]} 4... Nf6 {[%clk 0:03:01.2]} 5. d3 {[%clk 0:03:02.5]}
5... b5 {[%clk 0:03:01.8]} 6. Bb3 {[%clk 0:03:03.2]} 6... Be7 {[%clk 0:03:02.4]}
7. Nc3 {[%clk 0:02:58.8]} 7... d6 {[%clk 0:03:02.8]} 8. a4 {[%clk 0:02:53.6]}
8... b4 {[%clk 0:03:00.8]} 9. Nd5 {[%clk 0:02:54.1]} 9... O-O {[%clk 0:02:58.2]}
10. a5 {[%clk 0:02:49.3]} 10... Nd4 {[%clk 0:02:47.5]} 11. Nxd4 {[%clk
0:02:42.4]} 11... exd4 {[%clk 0:02:48.4]} 12. Nxe7+ {[%clk 0:02:34.7]} 12...
Qxe7 {[%clk 0:02:49.3]} 13. Bg5 {[%clk 0:02:35.2]} 13... h6 {[%clk 0:02:48.7]}
14. Bh4 {[%clk 0:02:35.3]} 14... Be6 {[%clk 0:02:40.1]} 15. Ba4 {[%clk
0:02:31.3]} 15... c5 {[%clk 0:02:19.8]} 16. O-O {[%clk 0:02:30]} 16... Ra7
{[%clk 0:01:39.1]} 17. f4 {[%clk 0:02:29.6]} 17... Bd7 {[%clk 0:01:33]} 18. Bb3
{[%clk 0:02:21.6]} 18... Re8 {[%clk 0:00:40]} 19. Qf3 {[%clk 0:02:20.4]} 19...
Bc6 {[%clk 0:00:38.8]} 20. Rae1 {[%clk 0:02:15.2]} 20... Qf8 {[%clk 0:00:24]}
21. Bxf6 {[%clk 0:02:06.8]} 21... gxf6 {[%clk 0:00:24.9]} 22. Qh5 {[%clk
0:02:07.3]} 22... Kh7 {[%clk 0:00:21.5]} 23. Rf3 {[%clk 0:02:07.6]} 23... Rae7
{[%clk 0:00:09.8]} 24. Qf5+ {[%clk 0:01:57.5]} 24... Kh8 {[%clk 0:00:09.8]} 25.
Rg3 {[%clk 0:01:46.7]} 25... Re6 {[%clk 0:00:08.8]} 26. Bxe6 {[%clk 0:01:46.6]}
26... fxe6 {[%clk 0:00:08.8]} 27. Qg6 {[%clk 0:01:43.3]} 27... Re7 {[%clk
0:00:08.5]} 28. Rf1 {[%clk 0:01:33.2]} 28... Be8 {[%clk 0:00:08.6]} 29. Qg4
{[%clk 0:01:32.7]} 29... Rh7 {[%clk 0:00:08.8]} 30. Qxe6 {[%clk 0:01:26.4]} 1-0

[Event "Late-Titled-Tuesday-Blitz-April-16-2024"]
[Site "Chess.com"]
[Date "2024.04.16"]
[Round "2"]
[White "SharathRk6"]
[Black "chessisveryfun1264"]
[Result "0-1"]
[WhiteElo "2391"]
[BlackElo "2743"]
[TimeControl "180+1"]
[EndTime "14:16:23 PDT"]
[Termination "chessisveryfun1264 won by resignation"]

1. e4 {[%clk 0:03:00.9]} 1... e6 {[%clk 0:03:00.9]} 2. d4 {[%clk 0:03:00.1]}
2... d5 {[%clk 0:03:01.8]} 3. e5 {[%clk 0:03:00.6]} 3... c5 {[%clk 0:03:01.7]}
4. c3 {[%clk 0:03:00.3]} 4... Nc6 {[%clk 0:03:02.6]} 5. Nf3 {[%clk 0:02:59.8]}
5... Qb6 {[%clk 0:03:03.3]} 6. Be2 {[%clk 0:03:00.2]} 6... cxd4 {[%clk
0:03:03.5]} 7. cxd4 {[%clk 0:03:00.3]} 7... Nge7 {[%clk 0:03:04.4]} 8. Na3
{[%clk 0:02:59.5]} 8... Nf5 {[%clk 0:03:04.8]} 9. Nc2 {[%clk 0:03:00.1]} 9...
Bd7 {[%clk 0:03:05.2]} 10. O-O {[%clk 0:03:00.4]} 10... Be7 {[%clk 0:03:05.8]}
11. Be3 {[%clk 0:02:59.5]} 11... Nb4 {[%clk 0:03:03.7]} 12. Nxb4 {[%clk
0:02:57.9]} 12... Bxb4 {[%clk 0:03:04.6]} 13. a3 {[%clk 0:02:57.6]} 13... Be7
{[%clk 0:03:04.6]} 14. b4 {[%clk 0:02:58]} 14... Bb5 {[%clk 0:03:02.5]} 15. g4
{[%clk 0:02:49.7]} 15... Nh6 {[%clk 0:02:57.1]} 16. Bxh6 {[%clk 0:02:46.6]}
16... gxh6 {[%clk 0:02:58]} 17. Kh1 {[%clk 0:02:43.5]} 17... O-O-O {[%clk
0:02:56.5]} 18. Bxb5 {[%clk 0:02:40]} 18... Qxb5 {[%clk 0:02:56.3]} 19. a4
{[%clk 0:02:34.6]} 19... Qxb4 {[%clk 0:02:55.8]} 20. Rb1 {[%clk 0:02:31.2]}
20... Qa5 {[%clk 0:02:55.8]} 21. Qb3 {[%clk 0:02:28]} 21... Qa6 {[%clk
0:02:51.1]} 22. Rfc1+ {[%clk 0:02:23.5]} 22... Kb8 {[%clk 0:02:51]} 23. h3
{[%clk 0:02:18.3]} 23... Rc8 {[%clk 0:02:50.3]} 24. Kg2 {[%clk 0:02:14.2]} 24...
Rc6 {[%clk 0:02:47.5]} 25. Rxc6 {[%clk 0:02:08.9]} 25... Qxc6 {[%clk 0:02:48.4]}
26. Ne1 {[%clk 0:02:05.8]} 26... Rc8 {[%clk 0:02:48.4]} 27. Nd3 {[%clk
0:02:04.7]} 27... Rc7 {[%clk 0:02:48.2]} 28. Rc1 {[%clk 0:02:01.6]} 28... Qb6
{[%clk 0:02:44.6]} 29. Qxb6 {[%clk 0:02:00.8]} 29... axb6 {[%clk 0:02:45.5]} 30.
Kf3 {[%clk 0:01:49.4]} 30... Rxc1 {[%clk 0:02:35.8]} 31. Nxc1 {[%clk 0:01:48.2]}
31... Ka7 {[%clk 0:02:36.6]} 32. Ke3 {[%clk 0:01:45.3]} 32... Ka6 {[%clk
0:02:36.7]} 33. Nb3 {[%clk 0:01:45.3]} 33... b5 {[%clk 0:02:37.2]} 34. axb5+
{[%clk 0:01:44.9]} 34... Kxb5 {[%clk 0:02:38.1]} 35. Kd3 {[%clk 0:01:45.4]}
35... Kb4 {[%clk 0:02:37.6]} 36. Kc2 {[%clk 0:01:45.6]} 36... b6 {[%clk
0:02:36.1]} 37. f4 {[%clk 0:01:46]} 37... Bh4 {[%clk 0:02:35.8]} 38. f5 {[%clk
0:01:44.6]} 38... Kc4 {[%clk 0:02:26]} 39. Nd2+ {[%clk 0:01:43.3]} 39... Kb4
{[%clk 0:02:19]} 40. Nf3 {[%clk 0:01:41.9]} 40... Bf2 {[%clk 0:02:16.1]} 41. h4
{[%clk 0:01:40.7]} 41... Kc4 {[%clk 0:02:12.8]} 42. fxe6 {[%clk 0:01:37.4]}
42... fxe6 {[%clk 0:02:12.7]} 43. h5 {[%clk 0:01:37.5]} 43... Bxd4 {[%clk
0:02:11.1]} 44. g5 {[%clk 0:01:37.8]} 44... hxg5 {[%clk 0:02:06.2]} 45. Nxg5
{[%clk 0:01:38]} 45... Bxe5 {[%clk 0:02:05.4]} 46. Nxe6 {[%clk 0:01:38.3]} 46...
d4 {[%clk 0:02:03.4]} 47. Ng5 {[%clk 0:01:37]} 47... d3+ {[%clk 0:02:03.7]} 48.
Kd1 {[%clk 0:01:36.2]} 48... b5 {[%clk 0:02:02.7]} 49. Nxh7 {[%clk 0:01:30.4]}
49... b4 {[%clk 0:02:01.5]} 50. Ng5 {[%clk 0:01:30.8]} 50... b3 {[%clk
0:02:01.8]} 51. Nf3 {[%clk 0:01:31.4]} 51... b2 {[%clk 0:02:01]} 52. Nd2+ {[%clk
0:01:31.7]} 52... Kb4 {[%clk 0:01:56.6]} 53. Nb1 {[%clk 0:01:29.7]} 53... Kb3
{[%clk 0:01:56.9]} 54. h6 {[%clk 0:01:21.3]} 54... Ka2 {[%clk 0:01:40.3]} 55.
Nd2 {[%clk 0:01:18.4]} 55... Bh8 {[%clk 0:01:31.9]} 56. h7 {[%clk 0:01:17.7]}
56... Bg7 {[%clk 0:01:31.2]} 57. Ke1 {[%clk 0:01:16.8]} 57... Bh8 {[%clk
0:01:31]} 58. Kd1 {[%clk 0:01:17.2]} 58... Bc3 {[%clk 0:01:31.7]} 59. h8=Q
{[%clk 0:01:03.3]} 59... Bxh8 {[%clk 0:01:31.4]} 0-1

[Event "Late-Titled-Tuesday-Blitz-April-16-2024"]
[Site "Chess.com"]
[Date "2024.04.16"]
[Round "2"]
[White "semchik73"]
[Black "bipe137"]
[Result "0-1"]
[WhiteElo "2394"]
[BlackElo "2708"]
[TimeControl "180+1"]
[EndTime "14:16:25 PDT"]
[Termination "bipe137 won by resignation"]

1. Nf3 {[%clk 0:02:59.9]} 1... d5 {[%clk 0:02:58.5]} 2. c4 {[%clk 0:02:59.8]}
2... e6 {[%clk 0:02:58.4]} 3. d4 {[%clk 0:02:59.7]} 3... a6 {[%clk 0:02:56.5]}
4. e3 {[%clk 0:02:58.8]} 4... Nf6 {[%clk 0:02:54.8]} 5. Nc3 {[%clk 0:02:58.5]}
5... Be7 {[%clk 0:02:47.5]} 6. Bd3 {[%clk 0:02:58.1]} 6... dxc4 {[%clk
0:02:36.2]} 7. Bxc4 {[%clk 0:02:57.4]} 7... b5 {[%clk 0:02:33.8]} 8. Bd3 {[%clk
0:02:57.4]} 8... Bb7 {[%clk 0:02:33.6]} 9. O-O {[%clk 0:02:56.9]} 9... c5 {[%clk
0:02:32.6]} 10. Qe2 {[%clk 0:02:50.5]} 10... Nbd7 {[%clk 0:02:31.6]} 11. Rd1
{[%clk 0:02:49.5]} 11... Qc7 {[%clk 0:02:29]} 12. e4 {[%clk 0:02:46.4]} 12...
cxd4 {[%clk 0:02:22.2]} 13. Nxd4 {[%clk 0:02:45.7]} 13... O-O {[%clk 0:02:19.8]}
14. Bg5 {[%clk 0:02:35]} 14... Rfd8 {[%clk 0:02:11.1]} 15. Rac1 {[%clk
0:02:33.6]} 15... Qb6 {[%clk 0:02:05.5]} 16. e5 {[%clk 0:02:30.7]} 16... Qxd4
{[%clk 0:01:48.9]} 17. Bxh7+ {[%clk 0:02:29.1]} 17... Nxh7 {[%clk 0:01:49.5]}
18. Rxd4 {[%clk 0:02:24.9]} 18... Bxg5 {[%clk 0:01:39.6]} 19. f4 {[%clk
0:02:21.8]} 19... Be7 {[%clk 0:01:38.7]} 20. Rcd1 {[%clk 0:02:21]} 20... Nhf8
{[%clk 0:01:38.8]} 21. Ne4 {[%clk 0:02:15.8]} 21... Bd5 {[%clk 0:01:34.2]} 22.
Rxd5 {[%clk 0:02:08]} 22... exd5 {[%clk 0:01:33.8]} 23. Rxd5 {[%clk 0:02:08.4]}
23... Nb6 {[%clk 0:01:29.8]} 24. Rxd8 {[%clk 0:02:07]} 24... Rxd8 {[%clk
0:01:30.7]} 25. Qg4 {[%clk 0:02:00.6]} 25... Nc4 {[%clk 0:01:23.1]} 26. Nf6+
{[%clk 0:01:58.8]} 26... Bxf6 {[%clk 0:01:22.9]} 27. exf6 {[%clk 0:01:58.3]}
27... g6 {[%clk 0:01:22.8]} 28. Qh4 {[%clk 0:01:49.5]} 28... Ne6 {[%clk
0:01:12]} 29. g4 {[%clk 0:01:36.8]} 29... Nxf4 {[%clk 0:01:09.3]} 30. Qh6 {[%clk
0:01:34.7]} 30... Ne6 {[%clk 0:01:07.8]} 31. h4 {[%clk 0:01:32]} 31... Rd4
{[%clk 0:00:59.8]} 32. g5 {[%clk 0:01:28.4]} 32... Ne5 {[%clk 0:00:52.6]} 33. h5
{[%clk 0:01:18.9]} 33... Ng4 {[%clk 0:00:46]} 0-1

[Event "Late-Titled-Tuesday-Blitz-April-16-2024"]
[Site "Chess.com"]
[Date "2024.04.16"]
[Round "2"]
[White "h4parah5"]
[Black "Brown_Mamba24"]
[Result "1-0"]
[WhiteElo "3029"]
[BlackElo "2635"]
[TimeControl "180+1"]
[EndTime "14:16:26 PDT"]
[Termination "h4parah5 won by resignation"]

1. Nf3 {[%clk 0:03:00.9]} 1... c5 {[%clk 0:02:42]} 2. e4 {[%clk 0:02:55.7]} 2...
g6 {[%clk 0:02:41.2]} 3. d4 {[%clk 0:02:53.1]} 3... cxd4 {[%clk 0:02:42.1]} 4.
Nxd4 {[%clk 0:02:53.5]} 4... Nc6 {[%clk 0:02:42.4]} 5. c4 {[%clk 0:02:53]} 5...
Nf6 {[%clk 0:02:42.8]} 6. Nc3 {[%clk 0:02:52.5]} 6... d6 {[%clk 0:02:42.6]} 7.
f3 {[%clk 0:02:51.8]} 7... Nxd4 {[%clk 0:02:42.5]} 8. Qxd4 {[%clk 0:02:52.7]}
8... Bg7 {[%clk 0:02:43.2]} 9. Be3 {[%clk 0:02:52.8]} 9... O-O {[%clk
0:02:43.6]} 10. Qd2 {[%clk 0:02:52.8]} 10... a5 {[%clk 0:02:43.5]} 11. Na4
{[%clk 0:02:52]} 11... Nd7 {[%clk 0:02:38.7]} 12. Be2 {[%clk 0:02:49.8]} 12...
b6 {[%clk 0:02:37.1]} 13. h4 {[%clk 0:02:48.3]} 13... Nc5 {[%clk 0:02:32.5]} 14.
Nc3 {[%clk 0:02:47.4]} 14... h5 {[%clk 0:02:27.7]} 15. O-O-O {[%clk 0:02:46.1]}
15... Bb7 {[%clk 0:02:22.9]} 16. Kb1 {[%clk 0:02:45]} 16... Rc8 {[%clk
0:02:21.7]} 17. Bd4 {[%clk 0:02:41.2]} 17... Ne6 {[%clk 0:02:18.1]} 18. Bxg7
{[%clk 0:02:40.4]} 18... Kxg7 {[%clk 0:02:19]} 19. Qe3 {[%clk 0:02:36.6]} 19...
Qc7 {[%clk 0:02:17]} 20. Nd5 {[%clk 0:02:31.5]} 20... Qc5 {[%clk 0:02:12.9]} 21.
Qc3+ {[%clk 0:02:23.3]} 21... f6 {[%clk 0:02:08.4]} 22. Nxe7 {[%clk 0:02:21.4]}
22... Nf4 {[%clk 0:02:04.1]} 23. Nxc8 {[%clk 0:02:16.9]} 23... Nxe2 {[%clk
0:02:04.3]} 24. Qd2 {[%clk 0:02:14.8]} 24... Ng3 {[%clk 0:02:03.3]} 25. Nxd6
{[%clk 0:02:02.1]} 25... Nxh1 {[%clk 0:01:49.2]} 26. Rxh1 {[%clk 0:02:03]} 26...
Bc6 {[%clk 0:01:16.6]} 27. Rd1 {[%clk 0:02:01.9]} 27... Kh7 {[%clk 0:01:15.6]}
28. Qd4 {[%clk 0:01:58.9]} 28... Qb4 {[%clk 0:01:09.6]} 29. a3 {[%clk
0:01:52.6]} 29... Qa4 {[%clk 0:01:08.9]} 30. Ka2 {[%clk 0:01:50.2]} 30... Qc2
{[%clk 0:00:58.5]} 31. Qd2 {[%clk 0:01:49.9]} 31... Qxd2 {[%clk 0:00:52.9]} 32.
Rxd2 {[%clk 0:01:50.8]} 32... Rd8 {[%clk 0:00:53.1]} 33. b4 {[%clk 0:01:49.5]}
33... axb4 {[%clk 0:00:50.2]} 34. axb4 {[%clk 0:01:50.4]} 34... b5 {[%clk
0:00:44.4]} 35. Kb3 {[%clk 0:01:49]} 35... Kg8 {[%clk 0:00:36.5]} 36. Kc3 {[%clk
0:01:46]} 36... bxc4 {[%clk 0:00:33.7]} 37. b5 {[%clk 0:01:46.4]} 37... Bd7
{[%clk 0:00:28.2]} 38. Nxc4 {[%clk 0:01:45.6]} 38... Kf7 {[%clk 0:00:21.4]} 39.
Nb6 {[%clk 0:01:45.4]} 39... Ke6 {[%clk 0:00:18.1]} 40. Nxd7 {[%clk 0:01:44.2]}
40... Rxd7 {[%clk 0:00:15.6]} 41. Rxd7 {[%clk 0:01:43.7]} 41... Kxd7 {[%clk
0:00:16.5]} 42. f4 {[%clk 0:01:44.1]} 42... Kd6 {[%clk 0:00:16.3]} 43. Kd4
{[%clk 0:01:44.2]} 43... Kc7 {[%clk 0:00:16.2]} 44. e5 {[%clk 0:01:44.4]} 44...
f5 {[%clk 0:00:11.2]} 45. e6 {[%clk 0:01:42.1]} 1-0

[Event "Late-Titled-Tuesday-Blitz-April-16-2024"]
[Site "Chess.com"]
[Date "2024.04.16"]
[Round "2"]
[White "ozates"]
[Black "Giantgoogachess"]
[Result "1-0"]
[WhiteElo "2524"]
[BlackElo "2312"]
[TimeControl "180+1"]
[EndTime "14:16:28 PDT"]
[Termination "ozates won by resignation"]

1. e4 {[%clk 0:02:48.5]} 1... c5 {[%clk 0:02:59.9]} 2. Nf3 {[%clk 0:02:48]} 2...
e6 {[%clk 0:03:00.3]} 3. b3 {[%clk 0:02:45.2]} 3... b6 {[%clk 0:02:58.7]} 4. Bb2
{[%clk 0:02:41.7]} 4... Bb7 {[%clk 0:02:58.5]} 5. Nc3 {[%clk 0:02:28.1]} 5...
Nf6 {[%clk 0:02:56.9]} 6. Bd3 {[%clk 0:02:23.9]} 6... Nc6 {[%clk 0:02:56.7]} 7.
O-O {[%clk 0:02:22.3]} 7... d6 {[%clk 0:02:57.1]} 8. a3 {[%clk 0:02:21.9]} 8...
Be7 {[%clk 0:02:57.3]} 9. Re1 {[%clk 0:02:21]} 9... O-O {[%clk 0:02:57.9]} 10.
e5 {[%clk 0:02:17.2]} 10... dxe5 {[%clk 0:02:57.2]} 11. Nxe5 {[%clk 0:02:18.1]}
11... Nxe5 {[%clk 0:02:56.2]} 12. Rxe5 {[%clk 0:02:19]} 12... Bd6 {[%clk
0:02:53.8]} 13. Rg5 {[%clk 0:02:18.7]} 13... h6 {[%clk 0:02:52.9]} 14. Rxg7+
{[%clk 0:01:49.9]} 14... Kxg7 {[%clk 0:02:52.2]} 15. Nd5 {[%clk 0:01:50]} 15...
Bxh2+ {[%clk 0:02:35]} 16. Kxh2 {[%clk 0:01:35.1]} 16... Qxd5 {[%clk 0:02:35.9]}
17. Qg4+ {[%clk 0:01:26.8]} 17... Qg5 {[%clk 0:02:34.9]} 18. Qh3 {[%clk
0:01:25.4]} 18... e5 {[%clk 0:02:20.8]} 19. Re1 {[%clk 0:01:23.1]} 19... Rfe8
{[%clk 0:02:20.1]} 20. Kg1 {[%clk 0:01:04.3]} 20... Qg4 {[%clk 0:02:17.4]} 21.
Qh2 {[%clk 0:00:59.1]} 21... e4 {[%clk 0:01:45.8]} 22. Bb5 {[%clk 0:00:49.6]}
22... Red8 {[%clk 0:01:39.3]} 23. Re3 {[%clk 0:00:44.1]} 23... Qf5 {[%clk
0:01:15.2]} 24. Qh4 {[%clk 0:00:31.5]} 24... Rd6 {[%clk 0:00:52.5]} 25. Qg3+
{[%clk 0:00:28.6]} 25... Qg4 {[%clk 0:00:41.6]} 26. Qxd6 {[%clk 0:00:29.5]} 1-0

[Event "Late-Titled-Tuesday-Blitz-April-16-2024"]
[Site "Chess.com"]
[Date "2024.04.16"]
[Round "2"]
[White "1g60-1"]
[Black "aa175"]
[Result "0-1"]
[WhiteElo "2431"]
[BlackElo "2747"]
[TimeControl "180+1"]
[EndTime "14:16:33 PDT"]
[Termination "aa175 won by resignation"]

1. e4 {[%clk 0:03:00.9]} 1... e5 {[%clk 0:02:58.1]} 2. Nf3 {[%clk 0:03:01.3]}
2... Nf6 {[%clk 0:02:57.2]} 3. Nxe5 {[%clk 0:03:01.1]} 3... d6 {[%clk
0:02:57.3]} 4. Nf3 {[%clk 0:03:01.3]} 4... Nxe4 {[%clk 0:02:58]} 5. d4 {[%clk
0:03:01.5]} 5... d5 {[%clk 0:02:57.8]} 6. Bd3 {[%clk 0:03:02.1]} 6... Bd6 {[%clk
0:02:58.1]} 7. c3 {[%clk 0:03:02.4]} 7... O-O {[%clk 0:02:58.4]} 8. h3 {[%clk
0:03:02.6]} 8... Bf5 {[%clk 0:02:58.4]} 9. O-O {[%clk 0:03:03]} 9... c6 {[%clk
0:02:57.5]} 10. a4 {[%clk 0:02:59.6]} 10... a5 {[%clk 0:02:54.9]} 11. Na3 {[%clk
0:02:59.9]} 11... Nd7 {[%clk 0:02:54.4]} 12. Nc2 {[%clk 0:03:00.3]} 12... Bg6
{[%clk 0:02:53.2]} 13. Re1 {[%clk 0:02:51.2]} 13... f5 {[%clk 0:02:52.3]} 14. c4
{[%clk 0:02:41.9]} 14... f4 {[%clk 0:02:46.5]} 15. Nh2 {[%clk 0:02:25.8]} 15...
Qh4 {[%clk 0:02:21.9]} 16. Rf1 {[%clk 0:02:06.4]} 16... Bh5 {[%clk 0:02:09.2]}
17. Be2 {[%clk 0:02:04]} 17... Bxe2 {[%clk 0:02:00.3]} 18. Qxe2 {[%clk
0:02:04.9]} 18... Ndf6 {[%clk 0:01:53.4]} 19. Nf3 {[%clk 0:01:53.8]} 19... Qh5
{[%clk 0:01:54.3]} 20. Qd3 {[%clk 0:01:47.1]} 20... Rae8 {[%clk 0:01:47.9]} 21.
Bd2 {[%clk 0:01:46.5]} 21... g5 {[%clk 0:01:47.5]} 22. Ne5 {[%clk 0:01:39.3]}
22... Bxe5 {[%clk 0:01:38.4]} 23. dxe5 {[%clk 0:01:39.9]} 23... Rxe5 {[%clk
0:01:38]} 24. Bc3 {[%clk 0:01:24.5]} 24... Nxc3 {[%clk 0:01:23.5]} 25. Qxc3
{[%clk 0:01:25.4]} 25... g4 {[%clk 0:01:23.1]} 26. cxd5 {[%clk 0:01:14.7]} 26...
Nxd5 {[%clk 0:01:11.6]} 27. hxg4 {[%clk 0:01:04]} 27... Qxg4 {[%clk 0:01:09.5]}
28. Qh3 {[%clk 0:00:53.7]} 28... Qg6 {[%clk 0:01:04.7]} 29. Nd4 {[%clk
0:00:47.8]} 29... f3 {[%clk 0:01:00.6]} 30. Nxf3 {[%clk 0:00:36.7]} 30... Nf4
{[%clk 0:01:01.1]} 31. Nxe5 {[%clk 0:00:30.7]} 31... Nxh3+ {[%clk 0:01:00.7]}
32. Kh1 {[%clk 0:00:31.2]} 32... Qh5 {[%clk 0:00:58.5]} 33. Nf3 {[%clk
0:00:29.5]} 33... Rxf3 {[%clk 0:00:57]} 34. gxf3 {[%clk 0:00:27.9]} 34... Nf4+
{[%clk 0:00:57.9]} 0-1